[Event "ESTCC 65 2019"]
[Site "Mali Losinj"]
[Date "2019.09.25"]
[Round "8.19"]
[White "Hohler, Peter"]
[Black "Bernhardsson, Sten"]
[Result "1/2-1/2"]
[ECO "D36"]
[WhiteElo "2047"]
[BlackElo "1956"]
[Annotator "NA"]
[PlyCount "56"]
[EventDate "2019.09.18"]
[EventType "team-tourn"]
[EventCountry "CRO"]
[SourceTitle "playchess.com"]
[Source "ChessBase"]
[SourceQuality "1"]
[WhiteTeam "Switzerland"]
[BlackTeam "Sweden"]
[WhiteTeamCountry "SUI"]
[BlackTeamCountry "SWE"]
[TimeControl "40/5400+30:1800+30"]

1. d4 {[%emt 0:00:30]} Nf6 {[%emt 0:00:30]} 2. c4 {[%emt 0:00:00]} e6 {[%emt 0:00:00]} 3. Nc3 {[%emt 0:01:00]} d5 {[%emt 0:00:00]} 4. cxd5 {[%emt 0:01:30]} exd5 {[%emt 0:00:30]} 5. Bg5 {[%emt 0:00:00]} Be7 {[%emt 0:00:30]} 6. e3 {[%emt 0:00:00]} O-O {[%emt 0:00:30]} 7. Bd3 {[%emt 0:00:30]} Nbd7 {[%emt 0:00:30]} 8. Nf3 {[%emt 0:02:30]} Re8 {[%emt 0:03:30]} 9. Qc2 {[%emt 0:01:30]} Nf8 {[%emt 0:03:30]} 10. O-O {[%emt 0:00:30]} c6 {[%emt 0:00:30]} 11. Rab1 {[%emt 0:01:30]} Ng4 {[%emt 0:05:30]} 12. Bxe7 {[%emt 0:00:30]} Qxe7 {[%emt 0:00:30]} 13. b4 {[%emt 0:02:30]} a6 {[%emt 0:00:30]} 14. a4 {[%emt 0:01:30]} Bd7 {[%emt 0:08:30]} 15. b5 {[%emt 0:13:30]} axb5 {[%emt 0:02:30]} 16. axb5 {[%emt 0:00:30]} Ng6 {[%emt 0:07:30]} 17. bxc6 {[%emt 0:02:30]} bxc6 {[%emt 0:01:30]} 18. Na4 {[%emt 0:06:30]} Nh4 {[%emt 0:03:30]} 19. Nxh4 {[%emt 0:13:30]} Qxh4 {[%emt 0:00:30]} 20. h3 {[%emt 0:00:30]} Nf6 {[%emt 0:07:30]} 21. Nb6 {[%emt 0:06:30]} Bxh3 {[%emt 0:05:30]} 22. Nxa8 {[%emt 0:08:30]} Bxg2 {[%emt 0:01:30]} 23. Kxg2 {[%emt 0:01:30]} Qg4+ {[%emt 0:01:30]} 24. Kh2 {[%emt 0:00:30]} Qh4+ {[%emt 0:00:30]} 25. Kg2 {[%emt 0:00:30]} Qg4+ {[%emt 0:00:30]} 26. Kh2 {[%emt 0:00:00]} Qh4+ {[%emt 0:00:30]} 27. Kg2 {[%emt 0:00:00]} Qg4+ {[%emt 0:00:30]} 28. Kh2 {[%emt 0:00:30]} Qh4+ {[%emt 0:00:30]} 1/2-1/2

[Event "ESTCC 65 2019"]
[Site "Mali Losinj"]
[Date "2019.09.25"]
[Round "8.20"]
[White "Nordenstrom, Sven"]
[Black "Illi, Hans-Joerg"]
[Result "1/2-1/2"]
[ECO "A25"]
[WhiteElo "1874"]
[BlackElo "1987"]
[Annotator "NA"]
[PlyCount "60"]
[EventDate "2019.09.18"]
[EventType "team-tourn"]
[EventCountry "CRO"]
[SourceTitle "playchess.com"]
[Source "ChessBase"]
[SourceQuality "1"]
[WhiteTeam "Sweden"]
[BlackTeam "Switzerland"]
[WhiteTeamCountry "SWE"]
[BlackTeamCountry "SUI"]
[TimeControl "40/5400+30:1800+30"]

1. c4 {[%emt 0:00:30]} e5 {[%emt 0:00:30]} 2. g3 {[%emt 0:00:30]} Nc6 {[%emt 0:01:30]} 3. Bg2 {[%emt 0:01:30]} f5 {[%emt 0:00:30]} 4. d3 {[%emt 0:00:30]} Nf6 {[%emt 0:00:30]} 5. Nc3 {[%emt 0:01:30]} Bb4 {[%emt 0:04:30]} 6. Bd2 {[%emt 0:03:30]} O-O {[%emt 0:04:30]} 7. e3 {[%emt 0:01:30]} Ne7 {[%emt 0:09:30]} 8. Qb3 {[%emt 0:03:30]} c5 {[%emt 0:11:30]} 9. Nge2 {[%emt 0:02:30]} d6 {[%emt 0:02:30]} 10. Rd1 {[%emt 0:02:30]} Rb8 {[%emt 0:04:30]} 11. O-O {[%emt 0:02:30]} Be6 {[%emt 0:05:30]} 12. Nd5 {[%emt 0:06:30]} Bxd2 {[%emt 0:01:30]} 13. Nxe7+ {[%emt 0:00:30]} Qxe7 {[%emt 0:00:30]} 14. Rxd2 {[%emt 0:00:30]} b5 {[%emt 0:04:30]} 15. Qc2 {[%emt 0:00:30]} d5 {[%emt 0:12:30]} 16. cxb5 {[%emt 0:02:30]} Rxb5 {[%emt 0:01:30]} 17. d4 {[%emt 0:12:30]} cxd4 {[%emt 0:07:30]} 18. exd4 {[%emt 0:00:30]} e4 {[%emt 0:02:30]} 19. Nf4 {[%emt 0:06:30]} Bf7 {[%emt 0:03:30]} 20. Re1 {[%emt 0:05:30]} Qb7 {[%emt 0:01:13]} 21. Bf1 {[%emt 0:02:30]} Rb4 {[%emt 0:04:09]} 22. Ng2 {[%emt 0:08:30]} Qb6 {[%emt 0:03:07]} 23. Qc3 {[%emt 0:00:30]} Be6 {[%emt 0:01:25]} 24. b3 {[%emt 0:02:30]} Rc8 {[%emt 0:01:40]} 25. Qb2 {[%emt 0:02:30]} a5 {[%emt 0:00:50]} 26. Qa1 {[%emt 0:06:30]} Nd7 {[%emt 0:03:47]} 27. Ne3 {[%emt 0:02:30]} Qa7 {[%emt 0:00:46]} 28. Nc2 {[%emt 0:00:30]} Rb6 {[%emt 0:01:16]} 29. Ne3 {[%emt 0:02:30]} Rb4 {[%emt 0:00:27]} 30. Nc2 {[%emt 0:00:00]} Rb6 {[%emt 0:01:43]} 1/2-1/2

[Event "ESTCC 65 2019"]
[Site "Mali Losinj"]
[Date "2019.09.25"]
[Round "8.21"]
[White "James, Kevin"]
[Black "Rooze, Jan"]
[Result "0-1"]
[ECO "E20"]
[WhiteElo "1959"]
[BlackElo "2281"]
[Annotator "NA"]
[PlyCount "26"]
[EventDate "2019.09.18"]
[EventType "team-tourn"]
[EventCountry "CRO"]
[SourceTitle "playchess.com"]
[Source "ChessBase"]
[SourceQuality "1"]
[WhiteTeam "Ireland"]
[BlackTeam "Belgium"]
[WhiteTeamCountry "IRL"]
[BlackTeamCountry "BEL"]
[TimeControl "40/5400+30:1800+30"]

1. d4 {[%emt 0:00:30]} Nf6 {[%emt 0:00:30]} 2. c4 {[%emt 0:00:00]} e6 {[%emt 0:00:00]} 3. Nc3 {[%emt 0:00:00]} Bb4 {[%emt 0:00:00]} 4. f3 {[%emt 0:00:00]} c5 {[%emt 0:00:00]} 5. d5 {[%emt 0:00:00]} O-O {[%emt 0:02:00]} 6. e4 {[%emt 0:00:30]} d6 {[%emt 0:03:30]} 7. Nge2 {[%emt 0:02:30]} b5 {[%emt 0:08:30]} 8. Ng3 {[%emt 0:02:30]} exd5 {[%emt 0:08:30]} 9. exd5 {[%emt 0:01:30]} Nbd7 {[%emt 0:07:30]} 10. Kf2 {[%emt 0:00:30]} bxc4 {[%emt 0:03:30]} 11. Nce4 {[%emt 0:10:30]} Nxe4+ {[%emt 0:01:30]} 12. fxe4 {[%emt 0:02:30]} Ne5 {[%emt 0:01:30]} 13. Bg5 {[%emt 0:02:30]} Qxg5 {[%emt 0:01:30]} 0-1

[Event "ESTCC 65 2019"]
[Site "Mali Losinj"]
[Date "2019.09.25"]
[Round "8.22"]
[White "Van Herck, Marcel"]
[Black "Egan, Colm"]
[Result "1-0"]
[ECO "A44"]
[WhiteElo "2088"]
[BlackElo "1710"]
[Annotator "NA"]
[PlyCount "61"]
[EventDate "2019.09.18"]
[EventType "team-tourn"]
[EventCountry "CRO"]
[SourceTitle "playchess.com"]
[Source "ChessBase"]
[SourceQuality "1"]
[WhiteTeam "Belgium"]
[BlackTeam "Ireland"]
[WhiteTeamCountry "BEL"]
[BlackTeamCountry "IRL"]
[TimeControl "40/5400+30:1800+30"]

1. d4 {[%emt 0:00:30]} c5 {[%emt 0:00:30]} 2. d5 {[%emt 0:00:30]} d6 {[%emt 0:00:30]} 3. e4 {[%emt 0:01:30]} e5 {[%emt 0:00:30]} 4. g3 {[%emt 0:15:30]} Nf6 {[%emt 0:03:30]} 5. Bg2 {[%emt 0:00:00]} Be7 {[%emt 0:01:30]} 6. Nc3 {[%emt 0:03:00]} Bd7 {[%emt 0:02:30]} 7. a4 {[%emt 0:00:30]} Na6 {[%emt 0:01:30]} 8. f4 {[%emt 0:12:30]} Bg4 {[%emt 0:08:30]} 9. Bf3 {[%emt 0:03:30]} Bxf3 {[%emt 0:02:30]} 10. Nxf3 {[%emt 0:00:30]} exf4 {[%emt 0:01:30]} 11. gxf4 {[%emt 0:01:30]} Ng4 {[%emt 0:01:30]} 12. O-O {[%emt 0:01:30]} Bf6 {[%emt 0:01:30]} 13. Qe2 {[%emt 0:04:30]} O-O {[%emt 0:01:30]} 14. h3 {[%emt 0:00:30]} Nh6 {[%emt 0:02:30]} 15. Be3 {[%emt 0:36:16]} Re8 {[%emt 0:14:30]} 16. Ng5 {[%emt 0:00:10]} Nb4 {[%emt 0:01:30]} 17. Rae1 {[%emt 0:02:02]} Qd7 {[%emt 0:05:30]} 18. Qg2 {[%emt 0:01:10]} a6 {[%emt 0:08:30]} 19. Kh2 {[%emt 0:00:45]} b5 {[%emt 0:03:30]} 20. axb5 {[%emt 0:00:31]} axb5 {[%emt 0:00:00]} 21. Rf3 {[%emt 0:00:15]} Na6 {[%emt 0:05:00]} 22. e5 {[%emt 0:01:23]} Bxg5 {[%emt 0:14:04]} 23. Qxg5 {[%emt 0:00:19]} Qf5 {[%emt 0:00:42]} 24. Rg1 {[%emt 0:01:40]} Qxc2+ {[%emt 0:02:00]} 25. Rg2 {[%emt 0:00:10]} Qg6 {[%emt 0:00:22]} 26. Nxb5 {[%emt 0:04:10]} Nf5 {[%emt 0:03:20]} 27. Bf2 {[%emt 0:03:21]} dxe5 {[%emt 0:01:10]} 28. fxe5 {[%emt 0:00:34]} Rxe5 {[%emt 0:00:38]} 29. Qf4 {[%emt 0:00:56]} Qf6 {[%emt 0:09:18]} 30. Bh4 {[%emt 0:00:14]} Qxh4 {[%emt 0:00:56]} 31. Qxe5 {[%emt 0:00:07]} 1-0

[Event "ESTCC 65 2019"]
[Site "Mali Losinj"]
[Date "2019.09.25"]
[Round "8.23"]
[White "Cassidy, Sydney"]
[Black "Van de Wynkele, Herman"]
[Result "0-1"]
[ECO "A07"]
[WhiteElo "1599"]
[BlackElo "2085"]
[Annotator "NA"]
[PlyCount "104"]
[EventDate "2019.09.18"]
[EventType "team-tourn"]
[EventCountry "CRO"]
[SourceTitle "playchess.com"]
[Source "ChessBase"]
[SourceQuality "1"]
[WhiteTeam "Ireland"]
[BlackTeam "Belgium"]
[WhiteTeamCountry "IRL"]
[BlackTeamCountry "BEL"]
[TimeControl "40/5400+30:1800+30"]

1. Nf3 {[%emt 0:00:30]} g6 {[%emt 0:00:30]} 2. g3 {[%emt 0:00:00]} Bg7 {[%emt 0:00:00]} 3. Bg2 {[%emt 0:00:00]} c5 {[%emt 0:00:00]} 4. O-O {[%emt 0:00:30]} d5 {[%emt 0:00:30]} 5. d3 {[%emt 0:00:30]} e5 {[%emt 0:01:30]} 6. e4 {[%emt 0:01:30]} Ne7 {[%emt 0:00:30]} 7. Nbd2 {[%emt 0:02:30]} Nbc6 {[%emt 0:01:30]} 8. c3 {[%emt 0:03:30]} O-O {[%emt 0:01:30]} 9. a3 {[%emt 0:00:30]} h6 {[%emt 0:03:30]} 10. Re1 {[%emt 0:05:30]} Be6 {[%emt 0:01:30]} 11. b3 {[%emt 0:08:30]} Qd7 {[%emt 0:03:30]} 12. Bb2 {[%emt 0:02:30]} dxe4 {[%emt 0:02:30]} 13. dxe4 {[%emt 0:00:30]} Rad8 {[%emt 0:03:30]} 14. Qc2 {[%emt 0:02:30]} g5 {[%emt 0:06:30]} 15. Nf1 {[%emt 0:08:30]} Qd3 {[%emt 0:02:30]} 16. Qxd3 {[%emt 0:02:30]} Rxd3 {[%emt 0:00:00]} 17. N3d2 {[%emt 0:00:30]} Rfd8 {[%emt 0:01:00]} 18. Re2 {[%emt 0:04:30]} g4 {[%emt 0:03:30]} 19. b4 {[%emt 0:06:30]} h5 {[%emt 0:03:30]} 20. Rc1 {[%emt 0:04:30]} Bh6 {[%emt 0:04:30]} 21. Rc2 {[%emt 0:03:30]} c4 {[%emt 0:01:30]} 22. f3 {[%emt 0:01:30]} Ng6 {[%emt 0:04:30]} 23. Kf2 {[%emt 0:03:30]} Nce7 {[%emt 0:05:30]} 24. Bc1 {[%emt 0:00:30]} b5 {[%emt 0:11:30]} 25. Nb1 {[%emt 0:02:30]} Bxc1 {[%emt 0:10:30]} 26. Rxc1 {[%emt 0:00:00]} gxf3 {[%emt 0:02:30]} 27. Bxf3 {[%emt 0:01:00]} Rxf3+ {[%emt 0:04:30]} 28. Kxf3 {[%emt 0:00:30]} Bg4+ {[%emt 0:00:30]} 29. Kf2 {[%emt 0:00:30]} Bxe2 {[%emt 0:00:00]} 30. Kxe2 {[%emt 0:00:30]} f5 {[%emt 0:00:00]} 31. exf5 {[%emt 0:00:30]} Nxf5 {[%emt 0:00:30]} 32. Nfd2 {[%emt 0:01:30]} h4 {[%emt 0:00:30]} 33. gxh4 {[%emt 0:06:30]} Nf4+ {[%emt 0:00:30]} 34. Kf1 {[%emt 0:02:30]} Nd3 {[%emt 0:00:30]} 35. Re1 {[%emt 0:02:30]} Nxe1 {[%emt 0:00:30]} 36. Kxe1 {[%emt 0:00:30]} Nxh4 {[%emt 0:00:00]} 37. Ke2 {[%emt 0:00:30]} Rd3 {[%emt 0:00:00]} 38. Nf1 {[%emt 0:01:30]} Nf3 {[%emt 0:00:30]} 39. Ng3 {[%emt 0:03:30]} Nxh2 {[%emt 0:00:30]} 40. Ne4 {[%emt 0:00:30]} Nf3 {[%emt 0:01:30]} 41. Nc5 {[%emt 0:30:30]} Ng1+ {[%emt 0:30:30]} 42. Ke1 {[%emt 0:00:30]} Rh3 {[%emt 0:00:30]} 43. a4 {[%emt 0:00:50]} bxa4 {[%emt 0:00:30]} 44. Nxa4 {[%emt 0:00:11]} Nf3+ {[%emt 0:02:30]} 45. Kf2 {[%emt 0:02:27]} e4 {[%emt 0:00:30]} 46. Nc5 {[%emt 0:01:58]} Ng5 {[%emt 0:00:30]} 47. Ke2 {[%emt 0:04:34]} Kf7 {[%emt 0:01:31]} 48. Nb7 {[%emt 0:01:42]} Ke6 {[%emt 0:00:44]} 49. Na5 {[%emt 0:00:44]} Kd5 {[%emt 0:02:52]} 50. Nb7 {[%emt 0:01:17]} Ne6 {[%emt 0:01:11]} 51. Kd2 {[%emt 0:01:57]} e3+ {[%emt 0:00:18]} 52. Ke2 {[%emt 0:01:08]} Nf4+ {[%emt 0:00:08]} 0-1

[Event "ESTCC 65 2019"]
[Site "Mali Losinj"]
[Date "2019.09.25"]
[Round "8.24"]
[White "Schrickx, Frank"]
[Black "Durkan, Joe"]
[Result "1/2-1/2"]
[ECO "C68"]
[WhiteElo "1813"]
[BlackElo "1459"]
[Annotator "NA"]
[PlyCount "86"]
[EventDate "2019.09.18"]
[EventType "team-tourn"]
[EventCountry "CRO"]
[SourceTitle "playchess.com"]
[Source "ChessBase"]
[SourceQuality "1"]
[WhiteTeam "Belgium"]
[BlackTeam "Ireland"]
[WhiteTeamCountry "BEL"]
[BlackTeamCountry "IRL"]
[TimeControl "40/5400+30:1800+30"]

1. e4 {[%emt 0:00:30]} e5 {[%emt 0:00:30]} 2. Nf3 {[%emt 0:00:00]} Nc6 {[%emt 0:00:00]} 3. Bb5 {[%emt 0:00:00]} a6 {[%emt 0:00:00]} 4. Bxc6 {[%emt 0:00:30]} bxc6 {[%emt 0:00:30]} 5. O-O {[%emt 0:00:30]} d6 {[%emt 0:04:30]} 6. d4 {[%emt 0:00:30]} Bg4 {[%emt 0:00:30]} 7. dxe5 {[%emt 0:00:30]} Bxf3 {[%emt 0:00:30]} 8. Qxf3 {[%emt 0:00:30]} dxe5 {[%emt 0:00:30]} 9. Qc3 {[%emt 0:03:30]} Qd6 {[%emt 0:01:30]} 10. Nd2 {[%emt 0:02:30]} f6 {[%emt 0:12:30]} 11. Nb3 {[%emt 0:01:30]} Ne7 {[%emt 0:15:30]} 12. Be3 {[%emt 0:01:30]} Nd5 {[%emt 0:08:30]} 13. exd5 {[%emt 0:02:30]} cxd5 {[%emt 0:00:30]} 14. Bc5 {[%emt 0:00:30]} Qc6 {[%emt 0:00:30]} 15. Bxf8 {[%emt 0:00:30]} Qxc3 {[%emt 0:00:30]} 16. bxc3 {[%emt 0:00:30]} Rxf8 {[%emt 0:00:30]} 17. Nc5 {[%emt 0:04:30]} Ke7 {[%emt 0:00:30]} 18. Rfb1 {[%emt 0:00:30]} Kd6 {[%emt 0:01:30]} 19. Nb7+ {[%emt 0:00:30]} Kd7 {[%emt 0:04:30]} 20. Rb3 {[%emt 0:01:30]} f5 {[%emt 0:11:30]} 21. Rab1 {[%emt 0:01:30]} Rf6 {[%emt 0:01:30]} 22. Nc5+ {[%emt 0:01:30]} Kc6 {[%emt 0:00:30]} 23. Nd3 {[%emt 0:00:30]} e4 {[%emt 0:00:30]} 24. Nf4 {[%emt 0:00:30]} g5 {[%emt 0:00:30]} 25. Ne2 {[%emt 0:01:30]} h5 {[%emt 0:02:30]} 26. Rb8 {[%emt 0:03:30]} Rxb8 {[%emt 0:01:30]} 27. Rxb8 {[%emt 0:00:30]} Kd7 {[%emt 0:00:30]} 28. h4 {[%emt 0:02:30]} gxh4 {[%emt 0:04:30]} 29. Nf4 {[%emt 0:00:30]} h3 {[%emt 0:01:30]} 30. gxh3 {[%emt 0:00:30]} Kc6 {[%emt 0:00:30]} 31. Nxh5 {[%emt 0:07:30]} Rh6 {[%emt 0:01:30]} 32. Nf4 {[%emt 0:00:30]} Rh4 {[%emt 0:00:30]} 33. Ne2 {[%emt 0:01:30]} Rxh3 {[%emt 0:00:00]} 34. Nd4+ {[%emt 0:00:30]} Kc5 {[%emt 0:01:00]} 35. Nxf5 {[%emt 0:01:30]} Rxc3 {[%emt 0:00:30]} 36. Rb2 {[%emt 0:00:30]} d4 {[%emt 0:00:30]} 37. Kf1 {[%emt 0:01:30]} Rf3 {[%emt 0:03:30]} 38. Nxd4 {[%emt 0:03:30]} Kxd4 {[%emt 0:00:30]} 39. Ke2 {[%emt 0:00:00]} Kc3 {[%emt 0:05:09]} 40. Rb7 {[%emt 0:00:00]} c5 {[%emt 0:07:16]} 41. Rb6 {[%emt 0:31:30]} Kxc2 {[%emt 0:37:17]} 42. Rxa6 {[%emt 0:00:30]} Kb2 {[%emt 0:00:39]} 43. Rc6 {[%emt 0:00:00]} Kxa2 {[%emt 0:00:00]} 1/2-1/2

[Event "ESTCC 65 2019"]
[Site "Mali Losinj"]
[Date "2019.09.25"]
[Round "8.25"]
[White "Singer, Hans"]
[Black "Peltola, Leo"]
[Result "1-0"]
[ECO "D36"]
[WhiteElo "2184"]
[BlackElo "1966"]
[Annotator "NA"]
[PlyCount "89"]
[EventDate "2019.09.18"]
[EventType "team-tourn"]
[EventCountry "CRO"]
[SourceTitle "playchess.com"]
[Source "ChessBase"]
[SourceQuality "1"]
[WhiteTeam "Austria"]
[BlackTeam "Finland"]
[WhiteTeamCountry "AUT"]
[BlackTeamCountry "FIN"]
[TimeControl "40/5400+30:1800+30"]

1. Nf3 {[%emt 0:00:30]} d5 {[%emt 0:00:30]} 2. d4 {[%emt 0:00:00]} Nf6 {[%emt 0:00:30]} 3. c4 {[%emt 0:01:00]} e6 {[%emt 0:00:00]} 4. Nc3 {[%emt 0:00:00]} b6 {[%emt 0:00:00]} 5. Bg5 {[%emt 0:02:00]} Be7 {[%emt 0:00:30]} 6. cxd5 {[%emt 0:00:30]} exd5 {[%emt 0:00:30]} 7. e3 {[%emt 0:02:30]} O-O {[%emt 0:01:30]} 8. Bd3 {[%emt 0:04:30]} Bb7 {[%emt 0:02:30]} 9. O-O {[%emt 0:02:30]} Nbd7 {[%emt 0:01:30]} 10. Rc1 {[%emt 0:02:30]} c6 {[%emt 0:02:30]} 11. Qc2 {[%emt 0:05:30]} h6 {[%emt 0:01:30]} 12. Bh4 {[%emt 0:03:30]} Re8 {[%emt 0:01:30]} 13. Rfe1 {[%emt 0:04:30]} Ne4 {[%emt 0:04:30]} 14. Bxe4 {[%emt 0:07:30]} Bxh4 {[%emt 0:01:30]} 15. Bf5 {[%emt 0:01:30]} Be7 {[%emt 0:02:30]} 16. Rcd1 {[%emt 0:12:30]} Nf6 {[%emt 0:08:30]} 17. Ne5 {[%emt 0:01:30]} Qd6 {[%emt 0:02:30]} 18. f4 {[%emt 0:02:30]} Bc8 {[%emt 0:04:30]} 19. Bd3 {[%emt 0:01:30]} Bd7 {[%emt 0:08:30]} 20. a3 {[%emt 0:01:30]} a5 {[%emt 0:07:30]} 21. Rc1 {[%emt 0:05:30]} Rec8 {[%emt 0:04:30]} 22. Red1 {[%emt 0:03:30]} Bg4 {[%emt 0:11:30]} 23. Rf1 {[%emt 0:01:30]} Bd7 {[%emt 0:02:30]} 24. Bf5 {[%emt 0:03:30]} Bxf5 {[%emt 0:01:30]} 25. Qxf5 {[%emt 0:00:00]} Qe6 {[%emt 0:02:30]} 26. Qxe6 {[%emt 0:00:00]} fxe6 {[%emt 0:00:00]} 27. Na4 {[%emt 0:01:30]} Rc7 {[%emt 0:03:00]} 28. Rxc6 {[%emt 0:00:30]} Rxc6 {[%emt 0:01:30]} 29. Nxc6 {[%emt 0:00:00]} b5 {[%emt 0:00:30]} 30. Nxe7+ {[%emt 0:04:00]} Kf7 {[%emt 0:00:30]} 31. Nb6 {[%emt 0:03:30]} Ra7 {[%emt 0:02:30]} 32. Nc6 {[%emt 0:00:30]} Ra6 {[%emt 0:02:30]} 33. Ne5+ {[%emt 0:01:30]} Ke8 {[%emt 0:00:30]} 34. Nc8 {[%emt 0:01:30]} Ne4 {[%emt 0:01:55]} 35. Rc1 {[%emt 0:00:30]} b4 {[%emt 0:02:44]} 36. a4 {[%emt 0:00:30]} g5 {[%emt 0:01:13]} 37. Rc6 {[%emt 0:02:30]} Rxc6 {[%emt 0:02:48]} 38. Nxc6 {[%emt 0:00:30]} Kd7 {[%emt 0:00:08]} 39. N8a7 {[%emt 0:00:00]} gxf4 {[%emt 0:03:47]} 40. exf4 {[%emt 0:00:00]} Nd2 {[%emt 0:01:51]} 41. Ne5+ {[%emt 0:30:30]} Kc7 {[%emt 0:30:21]} 42. Nac6 {[%emt 0:01:30]} Kb6 {[%emt 0:00:33]} 43. g4 {[%emt 0:00:30]} Nc4 {[%emt 0:00:44]} 44. Nxc4+ {[%emt 0:01:25]} dxc4 {[%emt 0:00:10]} 45. Ne5 {[%emt 0:00:20]} 1-0

[Event "ESTCC 65 2019"]
[Site "Mali Losinj"]
[Date "2019.09.25"]
[Round "8.26"]
[White "Karppinen, Martti"]
[Black "Woeber, Friedrich"]
[Result "0-1"]
[ECO "C63"]
[WhiteElo "1925"]
[BlackElo "2126"]
[Annotator "NA"]
[PlyCount "84"]
[EventDate "2019.09.18"]
[EventType "team-tourn"]
[EventCountry "CRO"]
[SourceTitle "playchess.com"]
[Source "ChessBase"]
[SourceQuality "1"]
[WhiteTeam "Finland"]
[BlackTeam "Austria"]
[WhiteTeamCountry "FIN"]
[BlackTeamCountry "AUT"]
[TimeControl "40/5400+30:1800+30"]

1. e4 {[%emt 0:00:30]} e5 {[%emt 0:00:30]} 2. Nf3 {[%emt 0:00:30]} Nc6 {[%emt 0:00:30]} 3. Bb5 {[%emt 0:00:30]} f5 {[%emt 0:00:30]} 4. d3 {[%emt 0:01:30]} fxe4 {[%emt 0:00:30]} 5. dxe4 {[%emt 0:01:30]} Nf6 {[%emt 0:00:00]} 6. Bg5 {[%emt 0:00:30]} d6 {[%emt 0:01:00]} 7. Nc3 {[%emt 0:03:30]} Be7 {[%emt 0:00:30]} 8. Bxf6 {[%emt 0:06:30]} Bxf6 {[%emt 0:00:30]} 9. Nd5 {[%emt 0:03:30]} O-O {[%emt 0:00:30]} 10. Nxf6+ {[%emt 0:01:30]} Qxf6 {[%emt 0:00:30]} 11. c3 {[%emt 0:01:30]} Bg4 {[%emt 0:02:30]} 12. Be2 {[%emt 0:01:30]} Ne7 {[%emt 0:05:30]} 13. h3 {[%emt 0:10:30]} Be6 {[%emt 0:01:30]} 14. Qd2 {[%emt 0:00:30]} h6 {[%emt 0:04:30]} 15. Qe3 {[%emt 0:13:30]} Ng6 {[%emt 0:09:30]} 16. O-O {[%emt 0:09:30]} Nf4 {[%emt 0:00:30]} 17. Kh2 {[%emt 0:02:30]} Bxh3 {[%emt 0:04:30]} 18. gxh3 {[%emt 0:01:30]} Nxe2 {[%emt 0:00:00]} 19. Qxe2 {[%emt 0:02:30]} Qxf3 {[%emt 0:00:00]} 20. Qxf3 {[%emt 0:02:30]} Rxf3 {[%emt 0:00:30]} 21. Rad1 {[%emt 0:01:30]} Rf4 {[%emt 0:02:30]} 22. f3 {[%emt 0:00:30]} Raf8 {[%emt 0:04:30]} 23. Kg2 {[%emt 0:00:30]} g5 {[%emt 0:01:30]} 24. Rf2 {[%emt 0:02:30]} Kg7 {[%emt 0:08:30]} 25. Kg3 {[%emt 0:04:30]} Kg6 {[%emt 0:07:30]} 26. Rdd2 {[%emt 0:02:30]} R8f6 {[%emt 0:04:30]} 27. Rd3 {[%emt 0:02:30]} h5 {[%emt 0:01:30]} 28. Rd1 {[%emt 0:00:30]} g4 {[%emt 0:02:30]} 29. hxg4 {[%emt 0:02:30]} hxg4 {[%emt 0:00:00]} 30. Rdf1 {[%emt 0:00:30]} Rxf3+ {[%emt 0:03:00]} 31. Rxf3 {[%emt 0:00:30]} Rxf3+ {[%emt 0:00:30]} 32. Rxf3 {[%emt 0:00:30]} gxf3 {[%emt 0:00:30]} 33. Kxf3 {[%emt 0:00:00]} c6 {[%emt 0:00:30]} 34. Ke3 {[%emt 0:04:46]} d5 {[%emt 0:01:30]} 35. b4 {[%emt 0:01:36]} b5 {[%emt 0:01:30]} 36. Kf3 {[%emt 0:01:51]} Kg5 {[%emt 0:00:00]} 37. Ke3 {[%emt 0:02:20]} Kg4 {[%emt 0:00:00]} 38. exd5 {[%emt 0:03:09]} cxd5 {[%emt 0:00:30]} 39. Kd3 {[%emt 0:00:40]} Kf3 {[%emt 0:00:00]} 40. a3 {[%emt 0:03:06]} a6 {[%emt 0:00:00]} 41. Kd2 {[%emt 0:30:44]} Kf2 {[%emt 0:30:30]} 42. Kd3 {[%emt 0:01:30]} e4+ {[%emt 0:00:00]} 0-1

[Event "ESTCC 65 2019"]
[Site "Mali Losinj"]
[Date "2019.09.25"]
[Round "8.27"]
[White "Titz, Heimo"]
[Black "Patola, Eero"]
[Result "1/2-1/2"]
[ECO "A88"]
[WhiteElo "1971"]
[BlackElo "1798"]
[Annotator "NA"]
[PlyCount "90"]
[EventDate "2019.09.18"]
[EventType "team-tourn"]
[EventCountry "CRO"]
[SourceTitle "playchess.com"]
[Source "ChessBase"]
[SourceQuality "1"]
[WhiteTeam "Austria"]
[BlackTeam "Finland"]
[WhiteTeamCountry "AUT"]
[BlackTeamCountry "FIN"]
[TimeControl "40/5400+30:1800+30"]

1. c4 {[%emt 0:00:30]} f5 {[%emt 0:00:30]} 2. Nf3 {[%emt 0:00:30]} Nf6 {[%emt 0:00:30]} 3. Nc3 {[%emt 0:00:30]} g6 {[%emt 0:00:00]} 4. g3 {[%emt 0:01:30]} Bg7 {[%emt 0:00:00]} 5. Bg2 {[%emt 0:00:00]} O-O {[%emt 0:00:30]} 6. O-O {[%emt 0:04:00]} d6 {[%emt 0:00:30]} 7. d4 {[%emt 0:00:30]} c6 {[%emt 0:01:30]} 8. Qd3 {[%emt 0:15:30]} Qe8 {[%emt 0:02:30]} 9. d5 {[%emt 0:05:30]} c5 {[%emt 0:01:30]} 10. b3 {[%emt 0:05:30]} Na6 {[%emt 0:00:30]} 11. Bb2 {[%emt 0:01:30]} Bd7 {[%emt 0:01:30]} 12. Rac1 {[%emt 0:06:30]} Nc7 {[%emt 0:02:30]} 13. a4 {[%emt 0:00:30]} a6 {[%emt 0:00:30]} 14. a5 {[%emt 0:10:30]} Rb8 {[%emt 0:03:30]} 15. Ra1 {[%emt 0:00:30]} b6 {[%emt 0:07:30]} 16. axb6 {[%emt 0:00:30]} Rxb6 {[%emt 0:00:30]} 17. Nd2 {[%emt 0:01:30]} Qf7 {[%emt 0:02:30]} 18. Na4 {[%emt 0:03:30]} Rbb8 {[%emt 0:01:30]} 19. Bc3 {[%emt 0:01:30]} Nfe8 {[%emt 0:02:30]} 20. Bxg7 {[%emt 0:00:30]} Kxg7 {[%emt 0:00:30]} 21. Qc3+ {[%emt 0:00:30]} Qf6 {[%emt 0:04:30]} 22. Qxf6+ {[%emt 0:03:30]} Nxf6 {[%emt 0:00:30]} 23. Nc3 {[%emt 0:00:30]} e6 {[%emt 0:00:30]} 24. dxe6 {[%emt 0:01:30]} Bxe6 {[%emt 0:00:30]} 25. Ra3 {[%emt 0:00:30]} Rfd8 {[%emt 0:00:30]} 26. Rc1 {[%emt 0:00:30]} d5 {[%emt 0:02:30]} 27. cxd5 {[%emt 0:00:30]} Nfxd5 {[%emt 0:00:30]} 28. Nxd5 {[%emt 0:00:30]} Nxd5 {[%emt 0:01:30]} 29. Rxa6 {[%emt 0:05:30]} Nc7 {[%emt 0:04:30]} 30. Ra7 {[%emt 0:02:30]} Rxd2 {[%emt 0:00:30]} 31. Rxc7+ {[%emt 0:00:30]} Kh6 {[%emt 0:02:30]} 32. Bf3 {[%emt 0:00:30]} Bxb3 {[%emt 0:06:30]} 33. R7xc5 {[%emt 0:00:30]} Rd1+ {[%emt 0:01:30]} 34. Kg2 {[%emt 0:00:30]} Rxc1 {[%emt 0:00:30]} 35. Rxc1 {[%emt 0:00:30]} Rd8 {[%emt 0:02:30]} 36. h4 {[%emt 0:02:30]} Rd2 {[%emt 0:00:30]} 37. Rc7 {[%emt 0:00:30]} Bd5 {[%emt 0:01:30]} 38. Bxd5 {[%emt 0:01:30]} Rxd5 {[%emt 0:00:30]} 39. f3 {[%emt 0:02:30]} Re5 {[%emt 0:01:30]} 40. Kf2 {[%emt 0:01:30]} Re6 {[%emt 0:01:30]} 41. Rf7 {[%emt 0:34:30]} Re5 {[%emt 0:32:30]} 42. Rc7 {[%emt 0:01:24]} Re6 {[%emt 0:00:30]} 43. g4 {[%emt 0:08:51]} fxg4 {[%emt 0:01:30]} 44. fxg4 {[%emt 0:00:02]} g5 {[%emt 0:00:30]} 45. h5 {[%emt 0:01:33]} Rxe2+ {[%emt 0:00:30]} 1/2-1/2